fUST/lending_fUST_20250724
["ID","MTS","AMOUNT","RATE_DAILY","PERIOD"]
[374452617,1753306239291,-460.0,0.000202,2]
[374452618,1753306239300,-460.0,0.000202,2]
[374452619,1753306239309,-460.0,0.000202,2]
[374452620,1753306239319,-460.0,0.000202,2]
[374452621,1753306239328,-460.0,0.00020273,2]
[374452622,1753306239338,-636.09405441,0.00020321,2]
[374452623,1753306239347,-375.93724616,0.00020354,2]
[374452624,1753306239357,-714.81,0.0002047,2]
[374452625,1753306239366,-628.07,0.0002047,2]
[374452626,1753306239375,-460.0,0.0002047,2]
[374452627,1753306239384,-613.23,0.0002047,2]
[374452628,1753306239394,-1602.54,0.0002047,2]
[374452629,1753306239403,-460.0,0.0002047,2]
[374452630,1753306239413,-918.82,0.00020471,2]
[374452631,1753306239422,-304.96,0.00020472,2]
[374452632,1753306239432,-460.0,0.00020472,2]
[374452633,1753306239441,-460.0,0.00020473,2]
[374452634,1753306239452,-460.0,0.00020473,2]
[374452635,1753306239462,-460.0,0.00020474,2]
[374452636,1753306239471,-643.4,0.00020474,2]
[374452637,1753306239481,-564.62,0.00020474,2]
[374452638,1753306239490,-460.0,0.00020474,2]
[374452639,1753306239499,-460.0,0.00020474,2]
[374452640,1753306239509,-460.0,0.00020474,2]
[374452641,1753306239519,-460.0,0.00020546,2]
[374452643,1753306239529,-460.0,0.00020546,2]
[374452645,1753306239538,-160.0,0.00020624,2]
[374452646,1753306239547,-215.84326551,0.00020624,2]
[374452647,1753306239557,-840.06856235,0.00020624,2]
[374452648,1753306239567,-12622.36869388,0.00020625,2]
[374452649,1753306239576,-150.0,0.00020685,2]
[374452650,1753306239586,-493.374,0.00020731,2]
[374452653,1753306239596,-714.81,0.00020744,2]
[374452655,1753306239605,-628.07,0.00020744,2]
[374452656,1753306239615,-460.0,0.00020744,2]
[374452658,1753306239624,-613.23,0.00020744,2]
[374452659,1753306239634,-1602.54,0.00020744,2]
[374452660,1753306239643,-918.82,0.00020745,2]
[374452661,1753306239653,-460.0,0.00020747,2]
[374452662,1753306239662,-460.0,0.00020747,2]
[374452663,1753306239671,-460.0,0.00020748,2]
[374452664,1753306239681,-643.4,0.00020748,2]
[374452665,1753306239690,-564.62,0.00020748,2]
[374452666,1753306239701,-460.0,0.00020748,2]
[374452667,1753306239710,-460.0,0.00020748,2]
[374452668,1753306239720,-460.0,0.00020748,2]
[374452669,1753306239729,-460.0,0.0002082,2]
[374452670,1753306239738,-250.12389181,0.000209,2]
[374452671,1753306239748,-215.0738,0.00020945,2]
[374452672,1753306239757,-151.0,0.00020945,2]
[374452673,1753306239767,-151.0,0.00020945,2]
[374452674,1753306239777,-151.0,0.00020945,2]
[374452675,1753306239786,-151.0,0.00020945,2]
[374452676,1753306239795,-151.0,0.00020945,2]
[374452677,1753306239805,-151.0,0.00020945,2]
[374452678,1753306239814,-151.0,0.00020945,2]
[374452679,1753306239824,-151.0,0.00020945,2]
[374452680,1753306239833,-151.0,0.00020945,2]
[374452681,1753306239843,-280.55485677,0.00020945,2]
[374452682,1753306239853,-151.0,0.00020945,2]
[374452683,1753306239862,-151.0,0.00020945,2]
[374452684,1753306239871,-151.0,0.00020945,2]
[374452685,1753306239881,-151.0,0.00020945,2]
[374452686,1753306239890,-151.0,0.00020945,2]
[374452687,1753306239899,-151.0,0.00020945,2]
[374452688,1753306239909,-151.0,0.00020945,2]
[374452689,1753306239918,-151.0,0.00020945,2]
[374452690,1753306239927,-151.0,0.00020945,2]
[374452691,1753306239937,-22769.71930789,0.00020945,2]
[374452692,1753306239946,-270.26850122,0.00021,2]
[374452693,1753306239957,-679.97430302,0.00021,10]
[374452694,1753306239966,-25263.41684961,0.00021,2]
[374452695,1753306239975,-38958.9095128,0.00021,3]
[374452696,1753306239985,-728.91,0.00021011,3]
[374452697,1753306239995,-714.81,0.00021018,2]
[374452698,1753306240004,-628.07,0.00021018,2]
[374452699,1753306240013,-460.0,0.00021018,2]
[374452700,1753306240022,-613.23,0.00021018,2]
[374452701,1753306240031,-1602.54,0.00021018,2]
[374452702,1753306240041,-918.82,0.00021019,2]
[374452703,1753306240050,-460.0,0.00021021,2]
[374452704,1753306240060,-470.57,0.00021021,2]
[374452705,1753306240074,-460.0,0.00021022,2]
[374452706,1753306240084,-643.4,0.00021022,2]
[374452707,1753306240095,-564.62,0.00021022,2]
[374452708,1753306240105,-460.0,0.00021022,2]
[374452709,1753306240115,-460.0,0.00021022,2]
[374452710,1753306240124,-460.0,0.00021022,2]
[374452711,1753306240133,-526.04,0.00021094,2]
[374452712,1753306240143,-375.93724616,0.00021158,2]
[374452713,1753306240153,-714.81,0.00021292,2]
[374452714,1753306240163,-628.07,0.00021292,2]
[374452715,1753306240172,-460.0,0.00021292,2]
[374452716,1753306240183,-613.23,0.00021292,2]
[374452717,1753306240196,-1602.54,0.00021292,2]
[374452718,1753306240207,-918.82,0.00021293,2]
[374452719,1753306240216,-460.0,0.00021295,2]
[374452720,1753306240226,-460.0,0.00021296,2]
[374452721,1753306240235,-643.4,0.00021296,2]
[374452722,1753306240244,-564.62,0.00021296,2]
[374452723,1753306240253,-460.0,0.00021296,2]
[374452724,1753306240263,-460.0,0.00021296,2]
[374452725,1753306240272,-460.0,0.00021296,2]
[374452726,1753306240282,-500.0,0.00021442,2]
[374452727,1753306240291,-160.0,0.0002148,2]
[374452728,1753306240301,-800.0,0.00021524,2]
[374452729,1753306240311,-714.81,0.00021566,2]
[374452730,1753306240320,-628.07,0.00021566,2]
[374452731,1753306240330,-460.0,0.00021566,2]
[374452732,1753306240339,-613.23,0.00021566,2]
[374452733,1753306240349,-618.33922538,0.00021566,2]
[374452734,1753306240362,-984.20077462,0.00021566,2]
[374452735,1753306240371,-918.82,0.00021567,2]
[374452736,1753306240381,-460.0,0.00021569,2]
[374452737,1753306240390,-460.0,0.0002157,2]
[374452738,1753306240399,-643.4,0.0002157,2]
[374452739,1753306240409,-564.62,0.0002157,2]
[374452740,1753306240418,-460.0,0.0002157,2]
[374452741,1753306240427,-460.0,0.0002157,2]
[374452742,1753306240437,-460.0,0.0002157,2]
[374452743,1753306240445,-373.8,0.00021613,5]
[374452744,1753306240457,-150.0,0.00021625,2]
[374452745,1753306240467,-640.33049408,0.00021821,2]
[374452746,1753306240476,-714.81,0.0002184,2]
[374452747,1753306240485,-628.07,0.0002184,2]
[374452748,1753306240495,-460.0,0.0002184,2]
[374452749,1753306240507,-613.23,0.0002184,2]
[374452750,1753306240516,-142.49266166,0.0002184,2]
[374452751,1753306240568,-460.0,0.00019648,2]
[374452752,1753306240578,-3.13746388,0.0002184,2]
[374452980,1753306243356,-1456.90987446,0.0002184,2]
[374452982,1753306243366,-918.82,0.00021841,2]
[374452984,1753306243376,-460.0,0.00021843,2]
[374452986,1753306243385,-460.0,0.00021844,2]
[374452988,1753306243394,-643.4,0.00021844,2]
[374452990,1753306243404,-564.62,0.00021844,2]
[374452992,1753306243413,-460.0,0.00021844,2]
[374452994,1753306243423,-460.0,0.00021844,2]
[374452996,1753306243432,-460.0,0.00021844,2]
[374452998,1753306243441,-373.8,0.00021921,5]
[374453000,1753306243452,-4577.0,0.00021931,2]
[374453002,1753306243462,-1607.0,0.00021943,2]
[374453004,1753306243471,-375.93724616,0.00021963,2]
[374453006,1753306243480,-153.0,0.00022,2]
[374453008,1753306243489,-260.0,0.00022028,2]
[374453009,1753306243499,-226.49149221,0.00022069,2]
[374453011,1753306243508,-4577.0,0.00022072,2]
[374453013,1753306243517,-714.81,0.00022114,2]
[374453015,1753306243526,-628.07,0.00022114,2]
[374453017,1753306243535,-460.0,0.00022114,2]
[374453019,1753306243544,-613.23,0.00022114,2]
[374453021,1753306243553,-1602.54,0.00022114,2]
[374453023,1753306243563,-918.82,0.00022115,2]
[374453025,1753306243571,-460.0,0.00022117,2]
[374453027,1753306243581,-460.0,0.00022118,2]
[374453029,1753306243591,-643.4,0.00022118,2]
[374453031,1753306243600,-564.62,0.00022118,2]
[374453033,1753306243609,-460.0,0.00022118,2]
[374453035,1753306243618,-460.0,0.00022118,2]
[374453037,1753306243628,-460.0,0.00022118,2]
[374453039,1753306243636,-311.0,0.00022176,2]
[374453041,1753306243646,-373.8,0.00022229,5]
[374453043,1753306243655,-223.0315306,0.00022314,2]
[374453045,1753306243664,-640.33049404,0.0002235,2]
[374453047,1753306243673,-714.81,0.00022388,2]
[374453048,1753306243683,-628.07,0.00022388,2]
[374453050,1753306243692,-460.0,0.00022388,2]
[374453052,1753306243702,-613.23,0.00022388,2]
[374453054,1753306243711,-1602.54,0.00022388,2]
[374453056,1753306243721,-918.82,0.00022389,2]
[374453058,1753306243730,-460.0,0.00022391,2]
[374453060,1753306243740,-460.0,0.00022392,2]
[374453062,1753306243749,-643.4,0.00022392,2]
[374453064,1753306243758,-564.62,0.00022392,2]
[374453066,1753306243767,-460.0,0.00022392,2]
[374453068,1753306243776,-460.0,0.00022392,2]
[374453070,1753306243785,-460.0,0.00022392,2]
[374453072,1753306243794,-484.58973416,0.000224,2]
[374453074,1753306243803,-312.482681,0.00022423,2]
[374453076,1753306243813,-250.0,0.00022447,2]
[374453078,1753306243822,-2157.0,0.00022461,2]
[374453080,1753306243831,-969.0,0.00022461,2]
[374453082,1753306243841,-407.0,0.00022461,2]
[374453084,1753306243853,-420.288,0.00022461,2]
[374453085,1753306243865,-648.0,0.00022461,2]
[374453087,1753306243874,-1975.04,0.00022465,2]
[374453089,1753306243883,-1257.69082616,0.00022468,2]
[374453092,1753306243894,-476.07036022,0.00022468,2]
[374453094,1753306243909,-2843.23881362,0.00022468,2]
[374453096,1753306243918,-151.0,0.0002248,7]
[374453098,1753306243927,-151.0,0.0002248,7]
[374453100,1753306243936,-151.0,0.0002248,7]
[374453102,1753306243945,-10231.53632586,0.0002249,7]
[374453330,1753306246149,-1103.50198052,0.0002249,7]
[374453337,1753306246210,-24058.2421416,0.0002249,7]
[374454995,1753306358678,-370.0,0.00019129,2]
[374455007,1753306926455,-370.0,0.0001754,2]
[374455008,1753307083056,242.616703,0.00013699,2]
[374455010,1753307143290,-1747.44929302,0.00017256,2]
[374455011,1753307144081,-1995.48900854,0.00017256,2]
[374455012,1753307223222,-370.0,0.00017159,2]
[374455013,1753307236087,-166.7526901,0.00017159,2]
[374455014,1753307246013,-855.80598824,0.00017159,2]
[374455015,1753307270304,-392.0,0.00017159,2]
[374455016,1753307355142,-24.85172244,0.00017159,2]
[374455017,1753307355162,-288.30277292,0.00017432,2]
[374455018,1753307355184,-288.30277287,0.00017434,2]
[374455019,1753307355203,-288.30277287,0.00017436,2]
[374455020,1753307355223,-288.30277287,0.00017437,2]
[374455021,1753307355242,-288.30277287,0.00017439,2]
[374455022,1753307355261,-253.17181316,0.00017441,2]
[374455023,1753307369109,-35.13095971,0.00017441,2]
[374455024,1753307369132,-166.0,0.00017531,2]
[374455025,1753307369154,-9424.73855737,0.0001754,2]
[374455045,1753307432160,-205.26144263,0.0001754,2]
[374455047,1753307432170,-345.78222511,0.00018435,2]
[374455049,1753307432179,-500.0,0.00018518,2]
[374455051,1753307432190,-259.20741083,0.00018518,2]
[374455053,1753307432200,-500.0,0.00018518,2]
[374455055,1753307432210,-500.0,0.00018518,2]
[374455058,1753307432220,-610.15099161,0.00018518,2]
[374455061,1753307432229,-422.09768129,0.00018519,2]
[374455064,1753307432241,-16698.29883403,0.00018519,2]
[374455069,1753307432253,-1538.9496995,0.00018519,2]
[374455072,1753307432264,-2934.5480884,0.00018519,2]
[374455076,1753307432287,-609.06452349,0.00018519,2]
[374455116,1753307438372,-2697.04117329,0.00018519,2]
[374455117,1753307438386,-161.313294,0.00018535,2]
[374455118,1753307438398,-190.163629,0.00018554,2]
[374455119,1753307438408,-1936.84994019,0.000189,2]
[374455120,1753307438417,-5062.47335386,0.000189,2]
[374455121,1753307438428,-309.64041068,0.00018979,2]
[374455122,1753307438438,-460.0,0.00019178,2]
[374455123,1753307438449,-460.0,0.00019178,2]
[374455124,1753307438459,-434.0557907,0.00019178,2]
[374455125,1753307438469,-522.51865911,0.00019178,2]
[374455126,1753307438479,-462.00071874,0.00019178,2]
[374455127,1753307438488,-460.0,0.00019178,2]
[374455128,1753307438497,-460.0,0.00019178,2]
[374455129,1753307438507,-190.40801784,0.00019178,2]
[374455130,1753307438516,-460.0,0.00019178,2]
[374455131,1753307438525,-461.92584145,0.00019178,2]
[374455132,1753307438535,-460.0,0.00019178,2]
[374455133,1753307438544,-460.0,0.00019178,2]
[374455134,1753307438553,-460.0,0.00019178,2]
[374455135,1753307438563,-461.77073188,0.00019178,2]
[374455136,1753307438573,-460.0,0.00019178,2]
[374455137,1753307438582,-531.65135666,0.00019178,2]
[374455138,1753307438592,-178.25556374,0.00019178,2]
[374455139,1753307438602,-460.0,0.00019178,2]
[374455140,1753307438612,-460.0,0.00019178,2]
[374455141,1753307438621,-1000.0,0.00019178,2]
[374455142,1753307438631,-460.0,0.00019178,2]
[374455143,1753307438640,-498.04747012,0.00019178,2]
[374455144,1753307438650,-460.0,0.00019178,2]
[374455145,1753307438660,-460.0,0.00019178,2]
[374455146,1753307438670,-460.0,0.00019178,2]
[374455147,1753307438679,-701.61,0.00019178,2]
[374455148,1753307438689,-460.0,0.00019178,2]
[374455149,1753307438698,-460.0,0.00019178,2]
[374455150,1753307438707,-460.0,0.00019178,2]
[374455151,1753307438717,-460.0,0.00019178,2]
[374455152,1753307438726,-460.0,0.00019178,2]
[374455153,1753307438736,-460.0,0.00019178,2]
[374455154,1753307438746,-460.0,0.00019178,2]
[374455155,1753307438755,-460.0,0.00019178,2]
[374455156,1753307438765,-460.0,0.00019178,2]
[374455157,1753307438774,-460.0,0.00019178,2]
[374455158,1753307438784,-601.52128618,0.00019178,2]
[374455159,1753307438793,-460.0,0.00019178,2]
[374455160,1753307438803,-460.0,0.00019178,2]
[374455161,1753307438812,-460.0,0.00019178,2]
[374455162,1753307438821,-460.0,0.00019178,2]
[374455163,1753307438831,-469.99801407,0.00019178,2]
[374455164,1753307438841,-460.0,0.00019178,2]
[374455165,1753307438850,-460.0,0.00019178,2]
[374455166,1753307438860,-460.0,0.00019178,2]
[374455167,1753307438870,-460.0,0.00019178,2]
[374455168,1753307438879,-460.0,0.00019178,2]
[374455169,1753307438889,-460.0,0.00019178,2]
[374455170,1753307438899,-460.0,0.00019178,2]
[374455171,1753307438909,-460.0,0.00019178,2]
[374455172,1753307438919,-493.73,0.00019178,2]
[374455173,1753307438928,-268.6003848,0.00019178,2]
[374455174,1753307438937,-460.0,0.00019178,2]
[374455175,1753307438947,-460.0,0.00019178,2]
[374455176,1753307438957,-460.0,0.00019178,2]
[374455177,1753307438966,-460.0,0.00019178,2]
[374455178,1753307438975,-460.0,0.00019178,2]
[374455179,1753307438985,-460.0,0.00019178,2]
[374455180,1753307438994,-460.0,0.00019178,2]
[374455181,1753307439003,-460.0,0.00019178,2]
[374455182,1753307439014,-460.0,0.00019178,2]
[374455183,1753307439024,-839.97,0.00019178,2]
[374455184,1753307439036,-460.0,0.00019178,2]
[374455185,1753307439046,-460.0,0.00019178,2]
[374455186,1753307439057,-460.0,0.00019178,2]
[374455187,1753307439067,-460.0,0.00019178,2]
[374455188,1753307439077,-460.0,0.00019178,2]
[374455189,1753307439088,-460.0,0.00019178,2]
[374455190,1753307439098,-460.0,0.00019178,2]
[374455191,1753307439108,-460.0,0.00019178,2]
[374455192,1753307439118,-460.0,0.00019178,2]
[374455193,1753307439127,-460.0,0.00019178,2]
[374455194,1753307439137,-460.0,0.00019178,2]
[374455195,1753307439147,-460.0,0.00019178,2]
[374455196,1753307439156,-460.0,0.00019178,2]
[374455197,1753307439166,-460.0,0.00019178,2]
[374455198,1753307439175,-460.0,0.00019178,2]
[374455199,1753307439184,-460.0,0.00019178,2]
[374455200,1753307439193,-460.0,0.00019178,2]
[374455201,1753307439202,-460.0,0.00019178,2]
[374455202,1753307439212,-1064.18,0.00019178,2]
[374455203,1753307439222,-307.74959897,0.00019178,2]
[374455204,1753307439233,-460.0,0.00019178,2]
[374455205,1753307439244,-460.0,0.00019178,2]
[374455206,1753307439255,-460.0,0.00019178,2]
[374455207,1753307439265,-460.0,0.00019178,2]
[374455208,1753307439275,-460.0,0.00019178,2]
[374455209,1753307439285,-336.67,0.00019178,2]
[374455210,1753307439294,-460.0,0.00019178,2]
[374455211,1753307439305,-460.0,0.00019178,2]
[374455212,1753307439314,-460.0,0.00019178,2]
[374455213,1753307439324,-460.0,0.00019178,2]
[374455214,1753307439334,-460.0,0.00019178,2]
[374455215,1753307439343,-460.0,0.00019178,2]
[374455216,1753307439352,-460.0,0.00019178,2]
[374455217,1753307439362,-564.39,0.00019178,2]
[374455218,1753307439371,-460.0,0.00019178,2]
[374455219,1753307439383,-2211.53,0.00019178,2]
[374455220,1753307439394,-460.0,0.00019178,2]
[374455221,1753307439405,-460.0,0.00019178,2]
[374455222,1753307439414,-460.0,0.00019178,2]
[374455223,1753307439424,-460.0,0.00019178,2]
[374455224,1753307439434,-460.0,0.00019178,2]
[374455225,1753307439444,-460.0,0.00019178,2]
[374455226,1753307439455,-811.85,0.00019178,2]
[374455227,1753307439464,-460.0,0.00019178,2]
[374455228,1753307439473,-460.0,0.00019178,2]
[374455229,1753307439483,-460.0,0.00019178,2]
[374455230,1753307439492,-460.0,0.00019178,2]
[374455231,1753307439502,-460.0,0.00019178,2]
[374455232,1753307439511,-460.0,0.00019178,2]
[374455233,1753307439520,-460.0,0.00019178,2]
[374455234,1753307439530,-460.0,0.00019178,2]
[374455236,1753307439539,-460.0,0.00019178,2]
[374455237,1753307439548,-460.0,0.00019178,2]
[374455238,1753307439557,-460.0,0.00019178,2]
[374455239,1753307439567,-460.0,0.00019178,2]
[374455240,1753307439576,-614.85,0.00019178,2]
[374455241,1753307439586,-460.0,0.00019178,2]
[374455242,1753307439595,-460.0,0.00019178,2]
[374455243,1753307439605,-460.0,0.00019178,2]
[374455244,1753307439614,-460.0,0.00019178,2]
[374455245,1753307439624,-460.41031252,0.00019178,2]
[374455246,1753307439633,-179.07314685,0.00019178,2]
[374455247,1753307439642,-460.0,0.00019178,2]
[374455248,1753307439652,-460.0,0.00019178,2]
[374455249,1753307439662,-460.0,0.00019178,2]
[374455250,1753307439671,-391.75247045,0.00019178,2]
[374455251,1753307439681,-460.0,0.00019178,2]
[374455252,1753307439690,-460.0,0.00019178,2]
[374455253,1753307439699,-460.0,0.00019178,2]
[374455254,1753307439709,-460.0,0.00019178,2]
[374455255,1753307439719,-564.3768852,0.00019178,2]
[374455256,1753307439728,-460.0,0.00019178,2]
[374455257,1753307439737,-333.36683095,0.00019178,2]
[374455258,1753307439747,-460.0,0.00019178,2]
[374455259,1753307439756,-460.0,0.00019178,2]
[374455260,1753307439766,-460.0,0.00019178,2]
[374455261,1753307439775,-460.0,0.00019178,2]
[374455262,1753307439785,-489.77781074,0.00019178,2]
[374455263,1753307439794,-460.0,0.00019178,2]
[374455264,1753307439804,-460.0,0.00019178,2]
[374455265,1753307439814,-460.0,0.00019178,2]
[374455266,1753307439824,-500.0,0.00019178,2]
[374455267,1753307439834,-193.446778,0.00019178,2]
[374455268,1753307439843,-4272.94545511,0.00019178,2]
[374455269,1753307439853,-167.32234191,0.00019229,2]
[374455270,1753307439863,-345.78222509,0.000194,2]
[374455271,1753307439872,-460.0,0.00019452,2]
[374455272,1753307439882,-460.0,0.00019452,2]
[374455273,1753307439891,-462.20486985,0.00019452,2]
[374455274,1753307439901,-225.65865543,0.00019452,2]
[374455275,1753307439912,-263.57426695,0.00019452,2]
[374455276,1753307439921,-466.3493268,0.00019452,2]
[374455277,1753307439931,-701.61,0.00019452,2]
[374455279,1753307439941,-460.0,0.00019452,2]
[374455281,1753307439951,-460.0,0.00019452,2]
[374455283,1753307439960,-460.0,0.00019452,2]
[374455284,1753307439969,-460.0,0.00019452,2]
[374455285,1753307439979,-460.0,0.00019452,2]
[374455286,1753307439988,-460.0,0.00019452,2]
[374455287,1753307439998,-460.0,0.00019452,2]
[374455288,1753307440007,-460.0,0.00019452,2]
[374455289,1753307440017,-460.0,0.00019452,2]
[374455290,1753307440026,-460.0,0.00019452,2]
[374455292,1753307440036,-460.0,0.00019452,2]
[374455293,1753307440045,-460.0,0.00019452,2]
[374455295,1753307440054,-493.73,0.00019452,2]
[374455296,1753307440064,-460.0,0.00019452,2]
[374455297,1753307440073,-460.0,0.00019452,2]
[374455298,1753307440082,-460.0,0.00019452,2]
[374455300,1753307440092,-460.0,0.00019452,2]
[374455301,1753307440101,-460.0,0.00019452,2]
[374455303,1753307440111,-460.0,0.00019452,2]
[374455305,1753307440120,-460.0,0.00019452,2]
[374455308,1753307440130,-460.0,0.00019452,2]
[374455311,1753307440139,-839.97,0.00019452,2]
[374455314,1753307440148,-460.0,0.00019452,2]
[374455317,1753307440159,-460.0,0.00019452,2]
[374455319,1753307440168,-460.0,0.00019452,2]
[374455321,1753307440177,-460.0,0.00019452,2]
[374455324,1753307440190,-460.0,0.00019452,2]
[374455327,1753307440199,-460.0,0.00019452,2]
[374455330,1753307440209,-460.0,0.00019452,2]
[374455333,1753307440218,-460.0,0.00019452,2]
[374455335,1753307440227,-1064.18,0.00019452,2]
[374455339,1753307440236,-460.0,0.00019452,2]
[374455342,1753307440246,-460.0,0.00019452,2]
[374455345,1753307440256,-460.0,0.00019452,2]
[374455348,1753307440265,-460.0,0.00019452,2]
[374455351,1753307440274,-460.0,0.00019452,2]
[374455354,1753307440285,-460.0,0.00019452,2]
[374455357,1753307440294,-460.0,0.00019452,2]
[374455359,1753307440304,-460.0,0.00019452,2]
[374455363,1753307440314,-564.39,0.00019452,2]
[374455365,1753307440323,-2211.53,0.00019452,2]
[374455368,1753307440332,-460.0,0.00019452,2]
[374455371,1753307440343,-460.0,0.00019452,2]
[374455374,1753307440352,-460.0,0.00019452,2]
[374455377,1753307440362,-460.0,0.00019452,2]
[374455380,1753307440371,-460.0,0.00019452,2]
[374455383,1753307440385,-460.0,0.00019452,2]
[374455386,1753307440398,-811.85,0.00019452,2]
[374455389,1753307440409,-460.0,0.00019452,2]
[374455392,1753307440419,-460.0,0.00019452,2]
[374455395,1753307440429,-460.0,0.00019452,2]
[374455398,1753307440438,-460.0,0.00019452,2]
[374455401,1753307440447,-460.0,0.00019452,2]
[374455404,1753307440458,-460.0,0.00019452,2]
[374455407,1753307440469,-460.0,0.00019452,2]
[374455410,1753307440478,-614.85,0.00019452,2]
[374455413,1753307440488,-460.0,0.00019452,2]
[374455416,1753307440498,-460.0,0.00019452,2]
[374455418,1753307440509,-460.0,0.00019452,2]
[374455422,1753307440519,-460.0,0.00019452,2]
[374455425,1753307440530,-195.57114539,0.00019452,2]
[374455427,1753307440540,-462.32236347,0.00019452,2]
[374455431,1753307440552,-460.0,0.00019452,2]
[374455434,1753307440562,-460.0,0.00019452,2]
[374455437,1753307440572,-460.0,0.00019452,2]
[374455441,1753307440582,-460.0,0.00019452,2]
[374455443,1753307440590,-179.27,0.00019639,3]
[374455446,1753307440600,-537.82,0.00019639,3]
[374455449,1753307440609,-358.54,0.0001964,3]
[374455452,1753307440619,-460.0,0.00019647,2]
[374455455,1753307440628,-460.0,0.00019647,2]
[374455458,1753307440637,-460.0,0.00019647,2]
[374455461,1753307440647,-460.0,0.00019647,2]
[374455464,1753307440656,-460.0,0.00019647,2]
[374455467,1753307440665,-460.0,0.00019647,2]
[374455470,1753307440674,-460.0,0.00019647,2]
[374455473,1753307440683,-460.0,0.00019647,2]
[374455475,1753307440693,-460.0,0.00019647,2]
[374455478,1753307440702,-460.0,0.00019647,2]
[374455481,1753307440711,-460.0,0.00019647,2]
[374455484,1753307440721,-460.0,0.00019647,2]
[374455487,1753307440730,-184.72,0.00019647,2]
[374455489,1753307440739,-460.0,0.00019647,2]
[374455492,1753307440749,-462.27660256,0.00019647,2]
[374455495,1753307440758,-460.0,0.00019647,2]
[374455498,1753307440768,-462.01424896,0.00019647,2]
[374455522,1753307440907,-460.0,0.00019647,2]
[374455523,1753307440917,-460.0,0.00019647,2]
[374455525,1753307440926,-460.0,0.00019647,2]
[374455527,1753307440936,-460.0,0.00019647,2]
[374455529,1753307440946,-460.0,0.00019647,2]
[374455531,1753307440955,-460.0,0.00019647,2]
[374455533,1753307440965,-460.0,0.00019647,2]
[374455535,1753307440974,-460.0,0.00019647,2]
[374455538,1753307440983,-460.0,0.00019647,2]
[374455540,1753307440993,-460.0,0.00019647,2]
[374455543,1753307441002,-460.0,0.00019647,2]
[374455546,1753307441012,-466.64434431,0.00019647,2]
[374455549,1753307441021,-460.0,0.00019647,2]
[374455552,1753307441031,-460.0,0.00019647,2]
[374455555,1753307441040,-460.0,0.00019647,2]
[374455557,1753307441050,-460.0,0.00019647,2]
[374455560,1753307441059,-460.0,0.00019647,2]
[374455563,1753307441069,-460.0,0.00019647,2]
[374455566,1753307441079,-460.0,0.00019647,2]
[374455569,1753307441088,-460.0,0.00019647,2]
[374455572,1753307441097,-460.0,0.00019647,2]
[374455575,1753307441107,-460.0,0.00019647,2]
[374455578,1753307441116,-460.0,0.00019647,2]
[374455581,1753307441125,-460.0,0.00019647,2]
[374455584,1753307441134,-460.0,0.00019647,2]
[374455587,1753307441143,-460.0,0.00019647,2]
[374455590,1753307441153,-460.0,0.00019647,2]